Department Family,Entity,Date Paid,Expense Type,Expenses Area,Supplier Name,Transaction Reference,Total,VAT Registration Number,Vlook up 
Department of Health,Imperial College Healthcare NHS Trust,01/11/2018,Agency Ahps: Qualified,"Div Of Surg, Cardiov & Cancer",Reed,3868552,"31,699.79",Optional requirement only,0
Department of Health,Imperial College Healthcare NHS Trust,01/11/2018,Agency Nursing: Qualified,Div Of Med & Integrated Care,Reed,3868552,"133,341.80",Optional requirement only,0
Department of Health,Imperial College Healthcare NHS Trust,01/11/2018,Agency Nursing: Qualified,"Div Of Surg, Cardiov & Cancer",Reed,3868552,"97,006.89",Optional requirement only,0
Department of Health,Imperial College Healthcare NHS Trust,01/11/2018,Agency Scient & Prof Qualified,Pathology,Reed,12027,"43,790.69",Optional requirement only,0
Department of Health,Imperial College Healthcare NHS Trust,01/11/2018,Buildings-Additions-Purchased,Capital Summary,Alarm Communication Limited,3868695,"62,438.76",Optional requirement only,0
Department of Health,Imperial College Healthcare NHS Trust,01/11/2018,Buildings-Additions-Purchased,Capital Summary,Cuffe  Plc,3866784,"49,942.84",Optional requirement only,0
Department of Health,Imperial College Healthcare NHS Trust,01/11/2018,Cleaning Materials,Nursing Directorate,Synergy Health Managed Services Ltd,3870087,"43,080.95",Optional requirement only,0
Department of Health,Imperial College Healthcare NHS Trust,01/11/2018,Clinical Managed Service Contr,Pathology,Beckman Coulter Uk Ltd,12012,"50,760.48",Optional requirement only,0
Department of Health,Imperial College Healthcare NHS Trust,01/11/2018,Clinical Managed Service Contr,Pathology,Roche Diagnostics Ltd,12047,"320,891.40",Optional requirement only,0
Department of Health,Imperial College Healthcare NHS Trust,01/11/2018,Clinical Managed Service Contr,Pathology,Roche Diagnostics Ltd,12048,"481,337.10",Optional requirement only,0
Department of Health,Imperial College Healthcare NHS Trust,01/11/2018,Computer Software/License,"Div Of Surg, Cardiov & Cancer",Qubit Health Ltd,3854750,"36,000.00",Optional requirement only,0
Department of Health,Imperial College Healthcare NHS Trust,01/11/2018,Computer Software/License,Div Of Women & Clin Support,Clevermed Ltd,3866981,"42,269.95",Optional requirement only,0
Department of Health,Imperial College Healthcare NHS Trust,01/11/2018,Consultancy Fees,Finance Directorate,Pricewaterhousecoopers Llp,3869177,"58,320.00",Optional requirement only,0
Department of Health,Imperial College Healthcare NHS Trust,01/11/2018,Decontamination Services,Nursing Directorate,Berendsen Uk,3869915,"347,618.12",Optional requirement only,0
Department of Health,Imperial College Healthcare NHS Trust,01/11/2018,Dialysers,Div Of Med & Integrated Care,Baxter Healthcare Ltd,3869857,"132,349.20",Optional requirement only,0
Department of Health,Imperial College Healthcare NHS Trust,01/11/2018,Dialysers,Div Of Med & Integrated Care,Baxter Healthcare Ltd,3869858,"46,321.30",Optional requirement only,0
Department of Health,Imperial College Healthcare NHS Trust,01/11/2018,Ext Contr Laundry,Nursing Directorate,Synergy Health Managed Services Ltd,3870088,"39,417.24",Optional requirement only,0
Department of Health,Imperial College Healthcare NHS Trust,01/11/2018,Ext Contr Laundry,Nursing Directorate,Synergy Health Managed Services Ltd,3870089,"46,045.79",Optional requirement only,0
Department of Health,Imperial College Healthcare NHS Trust,01/11/2018,Ext Contr Laundry,Nursing Directorate,Synergy Health Managed Services Ltd,3870090,"48,670.18",Optional requirement only,0
Department of Health,Imperial College Healthcare NHS Trust,01/11/2018,F & F-Additions,Capital Summary,Princebuild Limited,3868750,"78,198.09",Optional requirement only,0
Department of Health,Imperial College Healthcare NHS Trust,01/11/2018,Interpreting Services,Div Of Women & Clin Support,Oncall Interpreters Ltd [Cw],3859617,"47,510.15",Optional requirement only,0
Department of Health,Imperial College Healthcare NHS Trust,01/11/2018,It Eqpt-Additions,Capital Summary,Cerner Ltd,3866761,"36,972.00",Optional requirement only,0
Department of Health,Imperial College Healthcare NHS Trust,01/11/2018,Jac - Stock,Stock,Janssen-Cilag Ltd,3857428,"69,120.00",Optional requirement only,Stock
Department of Health,Imperial College Healthcare NHS Trust,01/11/2018,Jac - Stock,Stock,Jazz Pharmaceuticals Uk Limited [Ph],3857600,"39,420.00",Optional requirement only,Stock
Department of Health,Imperial College Healthcare NHS Trust,01/11/2018,Jac - Stock,Stock,Qualasept Ltd,3869743,"35,700.00",Optional requirement only,Stock
Department of Health,Imperial College Healthcare NHS Trust,01/11/2018,Jac - Stock,Stock,Roche Products Ltd,3856352,"32,962.39",Optional requirement only,Stock
Department of Health,Imperial College Healthcare NHS Trust,01/11/2018,Laboratory Culture Media,Pathology,Dhl Supply Chain  (Former Excel),12056,"37,044.00",Optional requirement only,0
Department of Health,Imperial College Healthcare NHS Trust,01/11/2018,Laboratory Test Kits,Pathology,Becton Dickinson Uk Ltd,11902,"73,556.59",Optional requirement only,0
Department of Health,Imperial College Healthcare NHS Trust,01/11/2018,Laboratory Test Kits,Pathology,Becton Dickinson Uk Ltd,11979,"102,938.60",Optional requirement only,0
Department of Health,Imperial College Healthcare NHS Trust,01/11/2018,Med & Surg Equip Repair,Nursing Directorate,Ge Medical Systems Limited,3869390,"386,074.80",Optional requirement only,0
Department of Health,Imperial College Healthcare NHS Trust,01/11/2018,Patients Appl: Purchase,"Div Of Surg, Cardiov & Cancer",Chas A Blatchford And Sons Ltd,3868692,"53,278.56",Optional requirement only,0
Department of Health,Imperial College Healthcare NHS Trust,01/11/2018,Patients Appl: Purchase,"Div Of Surg, Cardiov & Cancer",Chas A Blatchford And Sons Ltd,3868693,"48,083.02",Optional requirement only,0
Department of Health,Imperial College Healthcare NHS Trust,01/11/2018,P & M-Additions-Purchased,Capital Summary,Medevolve Ltd,3869880,"34,000.01",Optional requirement only,0
Department of Health,Imperial College Healthcare NHS Trust,01/11/2018,Postage & Carriage,Div Of Women & Clin Support,Xerox (Uk) Ltd,3865611,"49,276.58",Optional requirement only,0
Department of Health,Imperial College Healthcare NHS Trust,01/11/2018,Programme Support Costs,Medical Director Summary,Royal Marsden Nhs Foundation Trust,3869120,"83,800.00",Optional requirement only,0
Department of Health,Imperial College Healthcare NHS Trust,01/11/2018,Prostheses,"Div Of Surg, Cardiov & Cancer",Chas A Blatchford And Sons Ltd,3868103,"72,587.59",Optional requirement only,0
Department of Health,Imperial College Healthcare NHS Trust,01/11/2018,Prostheses,"Div Of Surg, Cardiov & Cancer",Chas A Blatchford And Sons Ltd,3868694,"48,239.09",Optional requirement only,0
Department of Health,Imperial College Healthcare NHS Trust,01/11/2018,Prostheses,"Div Of Surg, Cardiov & Cancer",Chas A Blatchford And Sons Ltd,3868696,"36,119.20",Optional requirement only,0
Department of Health,Imperial College Healthcare NHS Trust,01/11/2018,Purch Hcare Independent Sector,"Div Of Surg, Cardiov & Cancer",Bmi Healthcare Ltd,3866061,"195,682.87",Optional requirement only,0
Department of Health,Imperial College Healthcare NHS Trust,01/11/2018,Rent,Nursing Directorate,Thames Valley Charitable Housing,3866999,"44,967.34",Optional requirement only,0
Department of Health,Imperial College Healthcare NHS Trust,01/11/2018,Rent,Nursing Directorate,Thames Valley Charitable Housing,3867000,"44,967.34",Optional requirement only,0
Department of Health,Imperial College Healthcare NHS Trust,01/11/2018,Stents,"Div Of Surg, Cardiov & Cancer",Cook Uk Ltd,3865612,"35,400.00",Optional requirement only,0
Department of Health,Imperial College Healthcare NHS Trust,06/11/2018,Acton Housing Association,Housing Deductions,A2dominion Housing Group Ltd,3872601,"193,395.25",Optional requirement only,Housing Deductions
Department of Health,Imperial College Healthcare NHS Trust,06/11/2018,Agency Scient & Prof Qualified,Pathology,Reed,12204,"38,258.07",Optional requirement only,0
Department of Health,Imperial College Healthcare NHS Trust,06/11/2018,Bldg/Eng Equip Maint/Rep,Nursing Directorate,Cbre Managed Services Ltd,3871012,"201,417.01",Optional requirement only,0
Department of Health,Imperial College Healthcare NHS Trust,06/11/2018,Buildings-Additions-Purchased,Capital Summary,Cbre Managed Services Ltd,3871012,"512,001.28",Optional requirement only,0
Department of Health,Imperial College Healthcare NHS Trust,06/11/2018,Clinical Managed Service Contr,"Div Of Surg, Cardiov & Cancer",Medtronic Ltd,3872418,"88,945.61",Optional requirement only,0
Department of Health,Imperial College Healthcare NHS Trust,06/11/2018,Computer Software/License,Div Of Women & Clin Support,Carestream Health Uk Ltd,3863515,"296,012.10",Optional requirement only,0
Department of Health,Imperial College Healthcare NHS Trust,06/11/2018,Computer Software/License,Pathology,Clinisys Solutions Ltd,12145,"73,945.20",Optional requirement only,0
Department of Health,Imperial College Healthcare NHS Trust,06/11/2018,Home Electronics Cr,Ichnt Balance Sheet,Northumbria Healthcare Nhs Foundation Trust,3871968,"27,242.42",Optional requirement only,0
Department of Health,Imperial College Healthcare NHS Trust,06/11/2018,Jac - Stock,Stock,Qualasept Ltd,3869745,"345,780.00",Optional requirement only,Stock
Department of Health,Imperial College Healthcare NHS Trust,06/11/2018,Other Research Exp - Non-Pay,Rd Medical Directorate,West London Mental Health Nhs Trust,3866809,"48,974.00",Optional requirement only,0
Department of Health,Imperial College Healthcare NHS Trust,06/11/2018,Prostheses,"Div Of Surg, Cardiov & Cancer",Chas A Blatchford And Sons Ltd,3872748,"50,483.74",Optional requirement only,0
Department of Health,Imperial College Healthcare NHS Trust,06/11/2018,Thames Valley Housing Assoc,Housing Deductions,Thames Valley Charitable Housing,3872602,"111,874.92",Optional requirement only,Housing Deductions
Department of Health,Imperial College Healthcare NHS Trust,08/11/2018,Agency Ahps: Qualified,"Div Of Surg, Cardiov & Cancer",Reed,3873678,"37,418.26",Optional requirement only,0
Department of Health,Imperial College Healthcare NHS Trust,08/11/2018,Agency Nursing: Qualified,Div Of Med & Integrated Care,Reed,3873678,"145,615.91",Optional requirement only,0
Department of Health,Imperial College Healthcare NHS Trust,08/11/2018,Agency Nursing: Qualified,"Div Of Surg, Cardiov & Cancer",Reed,3873678,"109,077.10",Optional requirement only,0
Department of Health,Imperial College Healthcare NHS Trust,08/11/2018,Agency Nursing: Qualified,Div Of Women & Clin Support,Reed,3873678,"31,402.13",Optional requirement only,0
Department of Health,Imperial College Healthcare NHS Trust,08/11/2018,Books  Journals & Subscr,Div Of Med & Integrated Care,The Renal Registry,3873474,"107,470.00",Optional requirement only,0
Department of Health,Imperial College Healthcare NHS Trust,08/11/2018,Buildings-Additions-Purchased,Capital Summary,Eta  Projects Ltd,3873944,"44,450.40",Optional requirement only,0
Department of Health,Imperial College Healthcare NHS Trust,08/11/2018,Buildings-Additions-Purchased,Capital Summary,Metricab Power Engineering Ltd,3873415,"34,027.67",Optional requirement only,0
Department of Health,Imperial College Healthcare NHS Trust,08/11/2018,Computer Maintenance,Information & Comms Technology,Optimus It Infra Ltd,3873484,"41,400.00",Optional requirement only,0
Department of Health,Imperial College Healthcare NHS Trust,08/11/2018,Computer Software/License,Information & Comms Technology,Optimus It Infra Ltd,3873487,"38,016.00",Optional requirement only,0
Department of Health,Imperial College Healthcare NHS Trust,08/11/2018,Cx-Hh Consultant Load,Ichnt Balance Sheet,Dr Andrew Wright,3873695,"76,591.00",Optional requirement only,0
Department of Health,Imperial College Healthcare NHS Trust,08/11/2018,Cx-Hh Consultant Load,Ichnt Balance Sheet,Dr J. De La Fuente,3873697,"34,164.50",Optional requirement only,0
Department of Health,Imperial College Healthcare NHS Trust,08/11/2018,Cx-Hh Consultant Load,Ichnt Balance Sheet,Dr Matthew Williams,3873804,"45,220.40",Optional requirement only,0
Department of Health,Imperial College Healthcare NHS Trust,08/11/2018,Cx-Hh Consultant Load,Ichnt Balance Sheet,Zahid Rehan Salim,3873789,"43,900.00",Optional requirement only,0
Department of Health,Imperial College Healthcare NHS Trust,08/11/2018,Dialysers,Div Of Med & Integrated Care,Baxter Healthcare Ltd,3872990,"38,453.88",Optional requirement only,0
Department of Health,Imperial College Healthcare NHS Trust,08/11/2018,Ext Contract - Patient Travel,Nursing Directorate,Dhl Supply Chain  (Former Excel),3864120,"630,394.39",Optional requirement only,0
Department of Health,Imperial College Healthcare NHS Trust,08/11/2018,Ext Contract - Patient Travel,Nursing Directorate,Dhl Supply Chain  (Former Excel),3864123,"484,918.76",Optional requirement only,0
Department of Health,Imperial College Healthcare NHS Trust,08/11/2018,It Eqpt-Additions,Capital Summary,Cdw Ltd,3861176,"64,800.00",Optional requirement only,0
Department of Health,Imperial College Healthcare NHS Trust,08/11/2018,It Eqpt-Additions,Capital Summary,Cdw Ltd,3861177,"36,000.00",Optional requirement only,0
Department of Health,Imperial College Healthcare NHS Trust,08/11/2018,It Eqpt-Additions,Capital Summary,Cdw Ltd,3861996,"175,440.00",Optional requirement only,0
Department of Health,Imperial College Healthcare NHS Trust,08/11/2018,It Eqpt-Additions,Capital Summary,Cdw Ltd,3861997,"107,724.00",Optional requirement only,0
Department of Health,Imperial College Healthcare NHS Trust,08/11/2018,It Eqpt-Additions,Capital Summary,Cdw Ltd,3864088,"354,792.00",Optional requirement only,0
Department of Health,Imperial College Healthcare NHS Trust,08/11/2018,It Eqpt-Additions,Capital Summary,Infratech Hardware Limited,3858498,"59,400.00",Optional requirement only,0
Department of Health,Imperial College Healthcare NHS Trust,08/11/2018,It Eqpt-Additions,Capital Summary,Infratech Hardware Limited,3858502,"31,680.00",Optional requirement only,0
Department of Health,Imperial College Healthcare NHS Trust,08/11/2018,It Eqpt-Additions,Capital Summary,Infratech Hardware Limited,3858503,"80,808.00",Optional requirement only,0
Department of Health,Imperial College Healthcare NHS Trust,08/11/2018,It Eqpt-Additions,Capital Summary,Infratech (Sc) Limited,3860432,"39,600.00",Optional requirement only,0
Department of Health,Imperial College Healthcare NHS Trust,08/11/2018,It Eqpt-Additions,Capital Summary,Securei.T. Environments Ltd,3859517,"35,018.40",Optional requirement only,0
Department of Health,Imperial College Healthcare NHS Trust,08/11/2018,Jac - Stock,Stock,Alexion Pharma Uk Ltd,3864885,"30,240.00",Optional requirement only,Stock
Department of Health,Imperial College Healthcare NHS Trust,08/11/2018,Jac - Stock,Stock,Amgen Ltd,3872290,"32,917.44",Optional requirement only,Stock
Department of Health,Imperial College Healthcare NHS Trust,08/11/2018,Jac - Stock,Stock,Bayer Plc,3867039,"104,880.00",Optional requirement only,Stock
Department of Health,Imperial College Healthcare NHS Trust,08/11/2018,Jac - Stock,Stock,Gilead Sciences Ltd,3866119,"41,422.25",Optional requirement only,Stock
Department of Health,Imperial College Healthcare NHS Trust,08/11/2018,Jac - Stock,Stock,Jazz Pharmaceuticals Uk Limited [Ph],3861781,"39,420.00",Optional requirement only,Stock
Department of Health,Imperial College Healthcare NHS Trust,08/11/2018,Jac - Stock,Stock,Qualasept Ltd,3871766,"39,267.60",Optional requirement only,Stock
Department of Health,Imperial College Healthcare NHS Trust,08/11/2018,Med & Prof Fees (Imaging Cons),Ichnt Balance Sheet,Lindo Wing Radiology Llp,3873746,"191,719.50",Optional requirement only,0
Department of Health,Imperial College Healthcare NHS Trust,08/11/2018,Other Research Exp - Pay,Rd Medical Directorate,Imperial College London,3872715,"286,642.99",Optional requirement only,0
Department of Health,Imperial College Healthcare NHS Trust,08/11/2018,Other Research Exp - Pay,Rd Surgery & Cancer Division,Imperial College London,3872713,"96,753.83",Optional requirement only,0
Department of Health,Imperial College Healthcare NHS Trust,08/11/2018,Season Ticket Cr Abellio,Ichnt Balance Sheet,Abellio Transport Holdings Ltd,3871950,"40,243.00",Optional requirement only,0
Department of Health,Imperial College Healthcare NHS Trust,13/11/2018,Blood Products,Pathology,Nhs Blood And Transplant,12354,"172,406.78",Optional requirement only,0
Department of Health,Imperial College Healthcare NHS Trust,13/11/2018,Buildings-Additions-Purchased,Capital Summary,Conduct Services Ltd,3876279,"39,960.00",Optional requirement only,0
Department of Health,Imperial College Healthcare NHS Trust,13/11/2018,Buildings-Additions-Purchased,Capital Summary,Conduct Services Ltd,3876280,"30,339.28",Optional requirement only,0
Department of Health,Imperial College Healthcare NHS Trust,13/11/2018,Buildings-Additions-Purchased,Capital Summary,Cuffe  Plc,3874639,"688,861.13",Optional requirement only,0
Department of Health,Imperial College Healthcare NHS Trust,13/11/2018,Clinical Managed Service Contr,"Div Of Surg, Cardiov & Cancer",Chas A Blatchford And Sons Ltd,3875776,"46,259.60",Optional requirement only,0
Department of Health,Imperial College Healthcare NHS Trust,13/11/2018,Consultancy Fees,Div Of Med & Integrated Care,2020 Delivery Ltd,3874616,"158,562.00",Optional requirement only,0
Department of Health,Imperial College Healthcare NHS Trust,13/11/2018,Consultancy Fees,Div Of Med & Integrated Care,2020 Delivery Ltd,3874617,"73,519.20",Optional requirement only,0
Department of Health,Imperial College Healthcare NHS Trust,13/11/2018,Decontamination Services,Nursing Directorate,London North West Univ Healthcare Nhs Trust,3875509,"36,693.91",Optional requirement only,0
Department of Health,Imperial College Healthcare NHS Trust,13/11/2018,Drugs Nhs,Div Of Women & Clin Support,Lloydspharmacy Clinical Homecare,3874933,"3,032,681.77",Optional requirement only,0
Department of Health,Imperial College Healthcare NHS Trust,13/11/2018,It Eqpt-Additions,Capital Summary,Philips Healthcare,3876349,"57,328.32",Optional requirement only,0
Department of Health,Imperial College Healthcare NHS Trust,13/11/2018,Jac - Stock,Stock,Polar Speed Distribution Ltd,3873885,"53,298.00",Optional requirement only,Stock
Department of Health,Imperial College Healthcare NHS Trust,13/11/2018,Jac - Stock,Stock,Roche Products Ltd,3861828,"59,476.92",Optional requirement only,Stock
Department of Health,Imperial College Healthcare NHS Trust,13/11/2018,Other Transport Costs,Pathology,Dhl Supply Chain  (Former Excel),12389,"93,455.28",Optional requirement only,0
Department of Health,Imperial College Healthcare NHS Trust,13/11/2018,P & M-Additions-Purchased,Capital Summary,Philips Healthcare,3876749,"30,868.32",Optional requirement only,0
Department of Health,Imperial College Healthcare NHS Trust,13/11/2018,Staff Location/Bleeps,Information & Comms Technology,Multitone Electronics Plc,3862031,"66,735.00",Optional requirement only,0
Department of Health,Imperial College Healthcare NHS Trust,13/11/2018,Supplies Issues Recharges,Stock,Nhs Supply Chain (Maintenance 201),3875910,"154,953.35",Optional requirement only,Stock
Department of Health,Imperial College Healthcare NHS Trust,13/11/2018,Supplies Issues Recharges,Stock,Nhs Supply Chain (Maintenance 201),3875911,"175,855.16",Optional requirement only,Stock
Department of Health,Imperial College Healthcare NHS Trust,13/11/2018,Supplies Issues Recharges,Stock,Nhs Supply Chain (Maintenance 201),3875912,"172,056.80",Optional requirement only,Stock
Department of Health,Imperial College Healthcare NHS Trust,13/11/2018,Supplies Issues Recharges,Stock,Nhs Supply Chain (Maintenance 201),3875913,"109,594.39",Optional requirement only,Stock
Department of Health,Imperial College Healthcare NHS Trust,13/11/2018,Supplies Issues Recharges,Stock,Nhs Supply Chain (Maintenance 201),3875914,"146,379.17",Optional requirement only,Stock
Department of Health,Imperial College Healthcare NHS Trust,13/11/2018,Supplies Issues Recharges,Stock,Nhs Supply Chain (Maintenance 201),3875915,"165,600.31",Optional requirement only,Stock
Department of Health,Imperial College Healthcare NHS Trust,13/11/2018,Supplies Issues Recharges,Stock,Nhs Supply Chain (Maintenance 201),3875916,"163,822.53",Optional requirement only,Stock
Department of Health,Imperial College Healthcare NHS Trust,13/11/2018,Supplies Issues Recharges,Stock,Nhs Supply Chain (Maintenance 201),3875917,"113,662.98",Optional requirement only,Stock
Department of Health,Imperial College Healthcare NHS Trust,13/11/2018,Supplies Issues Recharges,Stock,Nhs Supply Chain (Maintenance 201),3875918,"161,732.67",Optional requirement only,Stock
Department of Health,Imperial College Healthcare NHS Trust,13/11/2018,Supplies Issues Recharges,Stock,Nhs Supply Chain (Maintenance 201),3875919,"172,830.84",Optional requirement only,Stock
Department of Health,Imperial College Healthcare NHS Trust,13/11/2018,Supplies Issues Recharges,Stock,Nhs Supply Chain (Maintenance 201),3875922,"118,762.70",Optional requirement only,Stock
Department of Health,Imperial College Healthcare NHS Trust,13/11/2018,Supplies Issues Recharges,Stock,Nhs Supply Chain (Maintenance 201),3875923,"160,298.30",Optional requirement only,Stock
Department of Health,Imperial College Healthcare NHS Trust,13/11/2018,Taxi & Other Vehicle Hire,Nursing Directorate,Dhl Supply Chain  (Former Excel),3864395,"74,266.75",Optional requirement only,0
Department of Health,Imperial College Healthcare NHS Trust,15/11/2018,Buildings-Additions-Purchased,Capital Summary,Gray Dungate Poole Ltd,3876873,"48,600.00",Optional requirement only,0
Department of Health,Imperial College Healthcare NHS Trust,15/11/2018,Clinical Managed Service Contr,Pathology,Genmed.Me Ltd,12512,"39,442.80",Optional requirement only,0
Department of Health,Imperial College Healthcare NHS Trust,15/11/2018,Clinical Managed Service Contr,Pathology,Genmed.Me Ltd,12513,"51,312.00",Optional requirement only,0
Department of Health,Imperial College Healthcare NHS Trust,15/11/2018,Clinical Managed Service Contr,Pathology,Genmed.Me Ltd,12514,"232,998.00",Optional requirement only,0
Department of Health,Imperial College Healthcare NHS Trust,15/11/2018,Ext Contract - Patient Travel,Nursing Directorate,Dhl Supply Chain  (Former Excel),3864397,"42,833.28",Optional requirement only,0
Department of Health,Imperial College Healthcare NHS Trust,15/11/2018,Ic Pay Recharge In: Med,Pathology,Imperial College London,12417,"31,415.64",Optional requirement only,0
Department of Health,Imperial College Healthcare NHS Trust,15/11/2018,Jac - Stock,Stock,Bayer Plc,3872775,"110,124.00",Optional requirement only,Stock
Department of Health,Imperial College Healthcare NHS Trust,15/11/2018,Jac - Stock,Stock,Janssen-Cilag Ltd,3873504,"51,840.00",Optional requirement only,Stock
Department of Health,Imperial College Healthcare NHS Trust,15/11/2018,Jac - Stock,Stock,Roche Products Ltd,3866253,"103,201.76",Optional requirement only,Stock
Department of Health,Imperial College Healthcare NHS Trust,15/11/2018,Med & Surg Equip General,"Div Of Surg, Cardiov & Cancer",Kebomed Uk Ltd,3860887,"30,023.40",Optional requirement only,0
Department of Health,Imperial College Healthcare NHS Trust,15/11/2018,Other Research Exp - Non-Pay,Rd Medical Directorate,Central & North West London Nhs Ft,3862981,"77,788.00",Optional requirement only,0
Department of Health,Imperial College Healthcare NHS Trust,15/11/2018,Other Transport Costs,Pathology,Dhl Supply Chain  (Former Excel),12418,"37,991.15",Optional requirement only,0
Department of Health,Imperial College Healthcare NHS Trust,15/11/2018,P & M-Additions-Purchased,Capital Summary,Philips Healthcare,3869454,"85,384.51",Optional requirement only,0
Department of Health,Imperial College Healthcare NHS Trust,15/11/2018,Rates,Nursing Directorate,City Of Westminster,3877788,"154,926.00",Optional requirement only,0
Department of Health,Imperial College Healthcare NHS Trust,15/11/2018,Season Ticket Cr Abellio,Ichnt Balance Sheet,Abellio Transport Holdings Ltd,3876493,"34,754.55",Optional requirement only,0
Department of Health,Imperial College Healthcare NHS Trust,15/11/2018,Services Received - Nhsts,"Div Of Surg, Cardiov & Cancer",London North West Univ Healthcare Nhs Trust,3863252,"45,784.66",Optional requirement only,0
Department of Health,Imperial College Healthcare NHS Trust,15/11/2018,Services Received - Nhsts,Nhs Elect,Central London Community Healthcare Nhs Trust,3852666,"53,540.93",Optional requirement only,0
Department of Health,Imperial College Healthcare NHS Trust,19/11/2018,Childcare Voucher (Kids Unltd),Childcare Vouchers,Sodexo Motivation Solutions Uk Ltd,3872009,"69,115.60",Optional requirement only,Childcare Vouchers
Department of Health,Imperial College Healthcare NHS Trust,20/11/2018,Agency Admin & Clerical,"Div Of Surg, Cardiov & Cancer",Reed,3880864,"55,960.03",Optional requirement only,0
Department of Health,Imperial College Healthcare NHS Trust,20/11/2018,Agency Ahps: Qualified,"Div Of Surg, Cardiov & Cancer",Reed,3880864,"32,295.58",Optional requirement only,0
Department of Health,Imperial College Healthcare NHS Trust,20/11/2018,Agency Nursing: Qualified,Div Of Med & Integrated Care,Reed,3880864,"123,545.17",Optional requirement only,0
Department of Health,Imperial College Healthcare NHS Trust,20/11/2018,Agency Nursing: Qualified,"Div Of Surg, Cardiov & Cancer",Reed,3880864,"107,040.25",Optional requirement only,0
Department of Health,Imperial College Healthcare NHS Trust,20/11/2018,Agency Scient & Prof Qualified,Pathology,Reed,12666,"40,993.57",Optional requirement only,0
Department of Health,Imperial College Healthcare NHS Trust,20/11/2018,Agency Senior Manager,"Div Of Surg, Cardiov & Cancer",Reed,3880864,"31,589.71",Optional requirement only,0
Department of Health,Imperial College Healthcare NHS Trust,20/11/2018,Blood Products,Pathology,Nhs Blood And Transplant,12668,"61,105.00",Optional requirement only,0
Department of Health,Imperial College Healthcare NHS Trust,20/11/2018,Buildings-Additions-Purchased,Capital Summary,Cuffe  Plc,3875457,"468,456.00",Optional requirement only,0
Department of Health,Imperial College Healthcare NHS Trust,20/11/2018,Buildings-Additions-Purchased,Capital Summary,Temple Lifts Ltd [Cs],3870314,"74,871.72",Optional requirement only,0
Department of Health,Imperial College Healthcare NHS Trust,20/11/2018,Computer Software/License,Div Of Women & Clin Support,Carestream Health Uk Ltd,3863292,"296,012.10",Optional requirement only,0
Department of Health,Imperial College Healthcare NHS Trust,20/11/2018,Contr Other External,Div Of Women & Clin Support,London North West Univ Healthcare Nhs Trust,3879791,"52,320.00",Optional requirement only,0
Department of Health,Imperial College Healthcare NHS Trust,20/11/2018,Dialysers,Div Of Med & Integrated Care,Baxter Healthcare Ltd,3878157,"137,071.42",Optional requirement only,0
Department of Health,Imperial College Healthcare NHS Trust,20/11/2018,Dialysers,Div Of Med & Integrated Care,Baxter Healthcare Ltd,3878172,"40,187.82",Optional requirement only,0
Department of Health,Imperial College Healthcare NHS Trust,20/11/2018,Electricity,Nursing Directorate,Edf Energy Customer Plc,3876410,"92,198.79",Optional requirement only,0
Department of Health,Imperial College Healthcare NHS Trust,20/11/2018,Electricity,Nursing Directorate,Edf Energy Customer Plc,3876415,"35,378.43",Optional requirement only,0
Department of Health,Imperial College Healthcare NHS Trust,20/11/2018,Electricity,Nursing Directorate,Edf Energy Customer Plc,3876422,"271,369.63",Optional requirement only,0
Department of Health,Imperial College Healthcare NHS Trust,20/11/2018,Ext Contr Catering,Private Patients Directorate,Sodexo Limited,3881002,"159,533.95",Optional requirement only,0
Department of Health,Imperial College Healthcare NHS Trust,20/11/2018,Ic Pay Recharge In: Med,"Div Of Surg, Cardiov & Cancer",Imperial College London,3880928,"57,527.14",Optional requirement only,0
Department of Health,Imperial College Healthcare NHS Trust,20/11/2018,Ic Pay Recharge In: Med,"Div Of Surg, Cardiov & Cancer",Imperial College London,3880931,"51,015.87",Optional requirement only,0
Department of Health,Imperial College Healthcare NHS Trust,20/11/2018,Ic Pay Recharge In: Med,"Div Of Surg, Cardiov & Cancer",Imperial College London,3880932,"64,177.18",Optional requirement only,0
Department of Health,Imperial College Healthcare NHS Trust,20/11/2018,Ic Pay Recharge In: Med,"Div Of Surg, Cardiov & Cancer",Imperial College London,3880933,"38,587.30",Optional requirement only,0
Department of Health,Imperial College Healthcare NHS Trust,20/11/2018,Income Tax Paye,Ichnt Balance Sheet,Hmrc Government Employers Account,3877736,"15,100,358.68",Optional requirement only,0
Department of Health,Imperial College Healthcare NHS Trust,20/11/2018,Jac - Stock,Stock,Genzyme Therapeutics Ltd,3873511,"202,896.00",Optional requirement only,Stock
Department of Health,Imperial College Healthcare NHS Trust,20/11/2018,Jac - Stock,Stock,Qualasept Ltd,3879909,"57,317.40",Optional requirement only,Stock
Department of Health,Imperial College Healthcare NHS Trust,20/11/2018,Lease Rents,Nursing Directorate,London Borough Of Hammersmith/Fulham,3881105,"100,371.10",Optional requirement only,0
Department of Health,Imperial College Healthcare NHS Trust,20/11/2018,Lease Rents,Nursing Directorate,London Borough Of Hammersmith/Fulham,3881106,"100,371.10",Optional requirement only,0
Department of Health,Imperial College Healthcare NHS Trust,20/11/2018,Non-Nhs Pay Recharge In: Med,"Div Of Surg, Cardiov & Cancer",Ministry Of Defence,3881042,"53,221.00",Optional requirement only,0
Department of Health,Imperial College Healthcare NHS Trust,20/11/2018,Other Research Exp - Pay,"Div Of Surg, Cardiov & Cancer",Imperial College London,3880930,"30,335.45",Optional requirement only,0
Department of Health,Imperial College Healthcare NHS Trust,20/11/2018,Other Research Exp - Pay,Rdwomen And Children Division,Imperial College London,3881131,"75,063.84",Optional requirement only,0
Department of Health,Imperial College Healthcare NHS Trust,20/11/2018,Payments In Adv - Nhs Supplier,Ichnt Balance Sheet,Nhs Supply Chain (Maintenance 201),3848914,"151,505.52",Optional requirement only,0
Department of Health,Imperial College Healthcare NHS Trust,20/11/2018,Payments In Adv - Nhs Supplier,Ichnt Balance Sheet,Nhs Supply Chain (Maintenance 201),3848917,"115,315.31",Optional requirement only,0
Department of Health,Imperial College Healthcare NHS Trust,20/11/2018,Rent,Nursing Directorate,London Borough Of Hammersmith/Fulham,3881107,"100,371.10",Optional requirement only,0
Department of Health,Imperial College Healthcare NHS Trust,20/11/2018,Services Received - Nhsts,Div Of Women & Clin Support,Central & North West London Nhs Ft,3879608,"46,770.00",Optional requirement only,0
Department of Health,Imperial College Healthcare NHS Trust,20/11/2018,Water,Nursing Directorate,Castle Water Ltd,3880980,"26,928.16",Optional requirement only,0
Department of Health,Imperial College Healthcare NHS Trust,20/11/2018,Water,Nursing Directorate,Castle Water Ltd,3880982,"37,584.45",Optional requirement only,0
Department of Health,Imperial College Healthcare NHS Trust,21/11/2018,Cnst Contributions,Other Hq Departments,Nhs Litigation Authority,3882382,"3,233,960.70",Optional requirement only,0
Department of Health,Imperial College Healthcare NHS Trust,21/11/2018,Insurance Costs,Office Of Chief Executive,Nhs Litigation Authority,3882380,"42,303.50",Optional requirement only,0
Department of Health,Imperial College Healthcare NHS Trust,22/11/2018,Buildings-Additions-Purchased,Capital Summary,Alarm Communication Limited,3871043,"41,760.84",Optional requirement only,0
Department of Health,Imperial College Healthcare NHS Trust,22/11/2018,Buildings-Additions-Purchased,Capital Summary,Jackson Lift Services Limited,3882386,"68,846.40",Optional requirement only,0
Department of Health,Imperial College Healthcare NHS Trust,22/11/2018,Computer Software/License,Information & Comms Technology,Patients Know Best Limited,3881913,"30,000.00",Optional requirement only,0
Department of Health,Imperial College Healthcare NHS Trust,22/11/2018,Contr Other External,Nursing Directorate,Cbre Managed Services Ltd,3881763,"780,224.22",Optional requirement only,0
Department of Health,Imperial College Healthcare NHS Trust,22/11/2018,Electricity,Nursing Directorate,Edf Energy Customer Plc,3876421,"289,994.07",Optional requirement only,0
Department of Health,Imperial College Healthcare NHS Trust,22/11/2018,Jac - Stock,Stock,Csl Behring Uk Ltd,3872838,"77,350.00",Optional requirement only,Stock
Department of Health,Imperial College Healthcare NHS Trust,22/11/2018,Jac - Stock,Stock,Qualasept Ltd,3881302,"123,222.00",Optional requirement only,Stock
Department of Health,Imperial College Healthcare NHS Trust,22/11/2018,Purch Hcare Independent Sector,Div Of Med & Integrated Care,London Central & West Unscheduled Care Collab,3882460,"452,524.25",Optional requirement only,0
Department of Health,Imperial College Healthcare NHS Trust,22/11/2018,Rates,Nursing Directorate,London Borough Hammersmith & Fulham,3882458,"205,200.00",Optional requirement only,0
Department of Health,Imperial College Healthcare NHS Trust,22/11/2018,Rates,Nursing Directorate,London Borough Hammersmith & Fulham,3882459,"192,375.00",Optional requirement only,0
Department of Health,Imperial College Healthcare NHS Trust,26/11/2018,Agency Nursing: Qualified,Div Of Med & Integrated Care,Reed,3883234,"124,945.72",Optional requirement only,0
Department of Health,Imperial College Healthcare NHS Trust,26/11/2018,Agency Nursing: Qualified,"Div Of Surg, Cardiov & Cancer",Reed,3883234,"87,003.01",Optional requirement only,0
Department of Health,Imperial College Healthcare NHS Trust,26/11/2018,Agency Scient & Prof Qualified,"Div Of Surg, Cardiov & Cancer",Reed,3883234,"30,631.17",Optional requirement only,0
Department of Health,Imperial College Healthcare NHS Trust,26/11/2018,Agency Scient & Prof Qualified,Pathology,Reed,12926,"41,151.53",Optional requirement only,0
Department of Health,Imperial College Healthcare NHS Trust,26/11/2018,Agency Senior Manager,Finance Directorate,Reed,3883234,"34,217.84",Optional requirement only,0
Department of Health,Imperial College Healthcare NHS Trust,26/11/2018,Blood Products,Pathology,Nhs Blood And Transplant,12821,"172,406.78",Optional requirement only,0
Department of Health,Imperial College Healthcare NHS Trust,26/11/2018,Buildings-Additions-Purchased,Capital Summary,Princebuild Limited,3883248,"34,638.06",Optional requirement only,0
Department of Health,Imperial College Healthcare NHS Trust,26/11/2018,Clinical Managed Service Contr,Pathology,Abbott Laboratories Ltd,3872695,"147,946.13",Optional requirement only,0
Department of Health,Imperial College Healthcare NHS Trust,26/11/2018,Computer Software/License,Information & Comms Technology,Cerner Ltd,3874636,"293,435.72",Optional requirement only,0
Department of Health,Imperial College Healthcare NHS Trust,26/11/2018,Computer Software/License,Information & Comms Technology,Patients Know Best Limited,3872667,"45,000.00",Optional requirement only,0
Department of Health,Imperial College Healthcare NHS Trust,26/11/2018,Contr Refuse & Clin Waste,Nursing Directorate,Grundon Waste Management Ltd,3881019,"30,399.60",Optional requirement only,0
Department of Health,Imperial College Healthcare NHS Trust,26/11/2018,Drugs Pbr Excluded,"Div Of Surg, Cardiov & Cancer",Healthcare At Home Ltd,3882819,"30,845.00",Optional requirement only,0
Department of Health,Imperial College Healthcare NHS Trust,26/11/2018,Drugs Pbr Excluded,"Div Of Surg, Cardiov & Cancer",Healthcare At Home Ltd,3883312,"37,025.00",Optional requirement only,0
Department of Health,Imperial College Healthcare NHS Trust,26/11/2018,Ext Contr Logistics,Finance Directorate,Eleanor Hospital Logistics Ltd,3871841,"163,311.42",Optional requirement only,0
Department of Health,Imperial College Healthcare NHS Trust,26/11/2018,Gas,Nursing Directorate,Corona Energy,3877118,"57,363.52",Optional requirement only,0
Department of Health,Imperial College Healthcare NHS Trust,26/11/2018,Gas,Nursing Directorate,Corona Energy,3877119,"84,475.44",Optional requirement only,0
Department of Health,Imperial College Healthcare NHS Trust,26/11/2018,Gas,Nursing Directorate,Corona Energy,3877132,"91,898.53",Optional requirement only,0
Department of Health,Imperial College Healthcare NHS Trust,26/11/2018,Hosting Service Expenses,Nhs Elect,Space4consulting Limited,3883758,"35,944.56",Optional requirement only,0
Department of Health,Imperial College Healthcare NHS Trust,26/11/2018,Interpreting Services,Div Of Women & Clin Support,Oncall Interpreters Ltd [Cw],3877597,"57,591.82",Optional requirement only,0
Department of Health,Imperial College Healthcare NHS Trust,26/11/2018,It Eqpt-Additions,Capital Summary,Opticore It Ltd,3871906,"114,000.00",Optional requirement only,0
Department of Health,Imperial College Healthcare NHS Trust,26/11/2018,Jac - Stock,Stock,Csl Behring Uk Ltd,3879910,"96,200.00",Optional requirement only,Stock
Department of Health,Imperial College Healthcare NHS Trust,26/11/2018,Jac - Stock,Stock,Gilead Sciences Ltd,3879899,"41,422.25",Optional requirement only,Stock
Department of Health,Imperial College Healthcare NHS Trust,26/11/2018,Phone Instal & Maint,Information & Comms Technology,Daisy Corporate Services Ltd,3882465,"35,814.68",Optional requirement only,0
Department of Health,Imperial College Healthcare NHS Trust,26/11/2018,P & M-Additions-Purchased,Capital Summary,Elekta Limited,3874648,"320,400.00",Optional requirement only,0
Department of Health,Imperial College Healthcare NHS Trust,26/11/2018,Printing Costs,Office Of Chief Executive,Moving Brands Limited,3883404,"36,000.00",Optional requirement only,0
Department of Health,Imperial College Healthcare NHS Trust,26/11/2018,Rent,Nursing Directorate,Thames Valley Charitable Housing,3883700,"44,967.34",Optional requirement only,0
Department of Health,Imperial College Healthcare NHS Trust,26/11/2018,Transcription Services,Div Of Med & Integrated Care,Dictate It Ltd,3859139,"36,040.16",Optional requirement only,0
Department of Health,Imperial College Healthcare NHS Trust,26/11/2018,Transcription Services,"Div Of Surg, Cardiov & Cancer",Dictate It Ltd,3859140,"35,477.82",Optional requirement only,0
Department of Health,Imperial College Healthcare NHS Trust,27/11/2018,Agency Ahps: Qualified,"Div Of Surg, Cardiov & Cancer",Reed,3886645,"32,411.36",Optional requirement only,0
Department of Health,Imperial College Healthcare NHS Trust,27/11/2018,Agency Nursing: Qualified,Div Of Med & Integrated Care,Reed,3886645,"124,553.37",Optional requirement only,0
Department of Health,Imperial College Healthcare NHS Trust,27/11/2018,Agency Nursing: Qualified,"Div Of Surg, Cardiov & Cancer",Reed,3886645,"78,603.07",Optional requirement only,0
Department of Health,Imperial College Healthcare NHS Trust,27/11/2018,Agency Scient & Prof Qualified,Pathology,Reed,3886459,"39,377.02",Optional requirement only,0
Department of Health,Imperial College Healthcare NHS Trust,27/11/2018,Clinical Managed Service Contr,"Div Of Surg, Cardiov & Cancer",Chas A Blatchford And Sons Ltd,3875775,"46,259.60",Optional requirement only,0
Department of Health,Imperial College Healthcare NHS Trust,27/11/2018,Clinical Managed Service Contr,"Div Of Surg, Cardiov & Cancer",Chas A Blatchford And Sons Ltd,3875780,"46,259.60",Optional requirement only,0
Department of Health,Imperial College Healthcare NHS Trust,27/11/2018,Clinical Managed Service Contr,"Div Of Surg, Cardiov & Cancer",Medtronic Ltd,3876568,"1,143,152.20",Optional requirement only,0
Department of Health,Imperial College Healthcare NHS Trust,27/11/2018,Clinical Managed Service Contr,Pathology,Beckman Coulter Uk Ltd,12866,"50,760.48",Optional requirement only,0
Department of Health,Imperial College Healthcare NHS Trust,27/11/2018,Clinical Managed Service Contr,Pathology,Genmed.Me Ltd,12511,"232,998.00",Optional requirement only,0
Department of Health,Imperial College Healthcare NHS Trust,27/11/2018,Clinical Managed Service Contr,Pathology,Genmed.Me Ltd,12515,"51,312.00",Optional requirement only,0
Department of Health,Imperial College Healthcare NHS Trust,27/11/2018,Clinical Managed Service Contr,Pathology,Genmed.Me Ltd,12516,"39,442.80",Optional requirement only,0
Department of Health,Imperial College Healthcare NHS Trust,27/11/2018,Computer Maintenance,Information & Comms Technology,Infratech Hardware Limited,3878003,"88,023.77",Optional requirement only,0
Department of Health,Imperial College Healthcare NHS Trust,27/11/2018,Conferences And Seminars,Information & Comms Technology,Cerner Ltd,12688,"26,733.21",Optional requirement only,0
Department of Health,Imperial College Healthcare NHS Trust,27/11/2018,Consultancy Fees,Information & Comms Technology,Patients Know Best Limited,3873485,"336,450.00",Optional requirement only,0
Department of Health,Imperial College Healthcare NHS Trust,27/11/2018,Consultancy Fees,Information & Comms Technology,Patients Know Best Limited,3885174,"336,450.00",Optional requirement only,0
Department of Health,Imperial College Healthcare NHS Trust,27/11/2018,Dist Award - Local Cea,Div Of Med & Integrated Care,Imperial College London,3886485,"25,053.34",Optional requirement only,0
Department of Health,Imperial College Healthcare NHS Trust,27/11/2018,Dist Award - Nat Cea,Div Of Med & Integrated Care,Imperial College London,3886485,"93,299.84",Optional requirement only,0
Department of Health,Imperial College Healthcare NHS Trust,27/11/2018,Dist Award - Nat Cea,"Div Of Surg, Cardiov & Cancer",Imperial College London,3886485,"69,591.15",Optional requirement only,0
Department of Health,Imperial College Healthcare NHS Trust,27/11/2018,Dist Award - Nat Cea,Div Of Women & Clin Support,Imperial College London,3886485,"45,516.68",Optional requirement only,0
Department of Health,Imperial College Healthcare NHS Trust,27/11/2018,Dist Award - Nat Cea,Medical Director Summary,Imperial College London,3886485,"27,682.96",Optional requirement only,0
Department of Health,Imperial College Healthcare NHS Trust,27/11/2018,Ic Pay Recharge In: Med,Div Of Med & Integrated Care,Imperial College London,3886485,"148,122.11",Optional requirement only,0
Department of Health,Imperial College Healthcare NHS Trust,27/11/2018,Ic Pay Recharge In: Med,"Div Of Surg, Cardiov & Cancer",Imperial College London,3886485,"335,146.61",Optional requirement only,0
Department of Health,Imperial College Healthcare NHS Trust,27/11/2018,Ic Pay Recharge In: Med,Div Of Women & Clin Support,Imperial College London,3886485,"89,515.74",Optional requirement only,0
Department of Health,Imperial College Healthcare NHS Trust,27/11/2018,It Eqpt-Additions,Capital Summary,Cdw Ltd,3877959,"122,160.00",Optional requirement only,0
Department of Health,Imperial College Healthcare NHS Trust,27/11/2018,Jac - Stock,Stock,Baxter Healthcare Ltd,3878268,"37,783.64",Optional requirement only,Stock
Department of Health,Imperial College Healthcare NHS Trust,27/11/2018,Jac - Stock,Stock,Roche Products Ltd,3880331,"42,014.16",Optional requirement only,Stock
Department of Health,Imperial College Healthcare NHS Trust,27/11/2018,Med & Surg Equip Repair,Nursing Directorate,Ge Medical Systems Limited,3881008,"686,278.80",Optional requirement only,0
Department of Health,Imperial College Healthcare NHS Trust,27/11/2018,Med & Surg Equip Repair,Nursing Directorate,Ge Medical Systems Limited,3881009,"666,660.00",Optional requirement only,0
Department of Health,Imperial College Healthcare NHS Trust,27/11/2018,Med & Surg Equip Repair,Nursing Directorate,Ge Medical Systems Limited,3881010,"662,068.80",Optional requirement only,0
Department of Health,Imperial College Healthcare NHS Trust,27/11/2018,Med & Surg Equip Repair,Nursing Directorate,Ge Medical Systems Limited,3881011,"683,588.40",Optional requirement only,0
Department of Health,Imperial College Healthcare NHS Trust,27/11/2018,Other Transport Costs,Pathology,Dhl Supply Chain  (Former Excel),3883727,"93,455.28",Optional requirement only,0
Department of Health,Imperial College Healthcare NHS Trust,27/11/2018,Purch Hcare Independent Sector,"Div Of Surg, Cardiov & Cancer",Parkside Hospital,3886902,"69,206.50",Optional requirement only,0
Department of Health,Imperial College Healthcare NHS Trust,27/11/2018,Rent,Human Resources,Imperial College Healthcare Charity,3873391,"25,000.00",Optional requirement only,0
Department of Health,Imperial College Healthcare NHS Trust,27/11/2018,Supplies Issues Recharges,Stock,Nhs Supply Chain (Consumables 101),3886518,"152,383.61",Optional requirement only,Stock
Department of Health,Imperial College Healthcare NHS Trust,27/11/2018,Supplies Issues Recharges,Stock,Nhs Supply Chain (Consumables 101),3886520,"108,219.69",Optional requirement only,Stock
Department of Health,Imperial College Healthcare NHS Trust,27/11/2018,Supplies Issues Recharges,Stock,Nhs Supply Chain (Consumables 101),3886523,"177,620.59",Optional requirement only,Stock
Department of Health,Imperial College Healthcare NHS Trust,27/11/2018,Supplies Issues Recharges,Stock,Nhs Supply Chain (Consumables 101),3886533,"159,885.15",Optional requirement only,Stock
